Workbook

Sheet Sheet1
W3: REPETITIONS IN PROVERBS
W4: See below for explanation
B7: Proverbs of Solomon, Son of David, king of Israel (1) | K7: Proverbs of Solomon (2) | X7: Sayins of the Wise (3) | Z7: Hezekiah Collection (4) | AE7: Agur | AF7: Lemuel
A9: Verse | B9: 1 | C9: 2 | D9: 3 | E9: 4 | F9: 5 | G9: 6 | H9: 7 | I9: 8 | J9: 9 | K9: 10 | L9: 11 | M9: 12 | N9: 13 | O9: 14 | P9: 15 | Q9: 16 | R9: 17 | S9: 18 | T9: 19 | U9: 20 | V9: 21 | W9: 22 | X9: 23 | Y9: 24 | Z9: 25 | AA9: 26 | AB9: 27 | AC9: 28 | AD9: 29 | AE9: 30 | AF9: 31
A10: 1 | C10: 2.1 | F10: =C11+2.9 -> 5.1 | H10: =C10+5 -> 7.1 | I10: =C12+5.8 -> 8.1 | K10: 10.1 | L10: 11.1 | T10: 19.1 | AA10: 26.1
A11: 2 | C11: 2.2 | D11: 3.2 | E11: =F10-0.9 -> 4.2 | K11: 10.2 | P11: =N25+2.04 -> 15.2 | Q11: 16.2 | V11: =Q11+5 -> 21.2 | W11: 22.2
A12: 3 | C12: 2.3 | W12: 22.3
A13: 4 | J13: 9.4 | L13: =K11+1.2 -> 11.4
A14: 5 | H14: =C25+5.34 -> 7.5 | T14: 19.5
A15: 6 | AC15: =T10+9.5 -> 28.6 | AD15: =M22+17.47 -> 29.6
A16: 7 | F16: 5.7 | L16: =K37+1.42 -> 11.7
A17: 8 | B17: 1.8 | Q17: =P25+1.64 -> 16.8 | S17: 18.8 | AA17: =AA10+0.7 -> 26.8
A18: 9 | T18: =T14+0.4 -> 19.9 | V18: 21.9
A19: 10 | G19: 6.1 | V19: 21.9
A20: 11 | G20: 6.11 | I20: =D24+4.96 -> 8.11 | J20: =D11+5.91 -> 9.11 | M20: 12.11 | V20: =T34+1.86 -> 21.11
A21: 12 | O21: 14.12 | AA21: 26.12 | AB21: =W12+4.82 -> 27.12
A22: 13 | M22: 12.13 | P22: 15.13 | W22: 22.13 | AA22: =W22+4 -> 26.13 | AB22: =U25+6.97 -> 27.13 | AD22: =W11+6.93 -> 29.13
A23: 14 | L23: 11.14 | N23: 13.14 | Y23: =X27+0.96 -> 24.14 | Z23: =V18+3.24 -> 25.14
A24: 15 | D24: 3.15 | AA24: =T33+6.91 -> 26.15
A25: 16 | C25: 2.16 | J25: =J13-0.24 -> 9.16 | N25: =M32+0.93 -> 13.16 | P25: 15.16 | U25: 20.16
A26: 17 | C26: =G33-4.08 -> 2.16
A27: 18 | X27: 23.18
A28: 19 | V28: =V19-0.71 -> 21.19 | AC28: =M20+16.08 -> 28.19
A29: 20 | G29: =B17+4.4 -> 6.2 | P29: =K10+5.1 -> 15.2 | AD29: =AA21+3.08 -> 29.2
A30: 21
A31: 22 | P31: =L23+4.08 -> 15.22 | R31: =P22+2.09 -> 17.22 | S31: =I44+9.87 -> 18.22 | AA31: =S17+7.42 -> 26.22
A32: 23 | M32: 12.23 | U32: =L10+9.13 -> 20.23
A33: 24 | G33: =H14-1.26 -> 6.24 | H33: =F16+1.54 -> 7.24 | T33: 19.24 | Z33: =V19+3.34 -> 25.24
A34: 25 | B34: 1.25 | R34: =O21+2.13 -> 16.25 | T34: 19.25
A35: 26
A36: 27 | O36: =N23+1.13 -> 14.27
A37: 28 | K37: 10.28
A38: 29
A39: 30 | B39: =B34+0.05 -> 1.3
A40: 31
A41: 32
A42: 33 | Y42: =G19+18.23 -> 24.33
A43: 34 | Y43: =G20+18.23 -> 24.34
A44: 35 | I44: 8.35
A45: 36
AJ47: `
F48: Each section can be individually viewed or all the sections together (click "Spelling variations"
F49: then "One dissimilar".... etc), click on "Reset" to remove the arrows. In order to view how each
F50: section is interlinked click (for example) "Links (1) and "Reset" to remove the arrows. Ignore the
F51: directionality of the arrows as they do not indicate either Precedence or Dependence only Similarity
F52: (or measure of Dissimilarity)between verses. Data Collected from: Daniel C. Snell,Twice-told Proverbs
F53: and the Composition of the Book of Proverbs, (Winona Lake, Ind. : Eisenbrauns, 1993),35-41
B57: Whole verses with spelling variations (6 sets) | L57: Whole verses with one disimillar word (6 sets) | U57: Whole verses with two disimilar words (11 sets)
B59: 9:4=9:16 | L59: 2:1=7:1 | U59: 1:8=6:20
B60: 14:12=16:25 | L60: 2:16=7:5 | U60: 1:25=1:30
B61: 18:8=26:22 | L61: 5:7=7:24 | U61: 2:2=5:1
B62: 20:16=27:13 | L62: 6:10-11=24:33-34 | U62: 3:2=9:11
B63: 21:9=25:14 | L63: 19:5=19:9 | U63: 4:20=5:1
B64: 22:3=27:12 | L64: 23:18=24:14b | U64: 10:1=15:20
U65: 11:1=20:23
U66: 12:11=28:19
U67: 13:14=14:27
U68: 19:1=28:6
U69: 19:24=26:15
B70: Whole verses three disimilar words (9 sets) | L70: Whole verses four or more disimilar words (10 sets)
B72: 3:15=8:11 | L72: 2:3=8:1
B73: 6:24=7:5 | L73: 2:16=6:24
B74: 8:35=18:22 | L74: 11:14=15:22
B75: 10:2=11:4 | L75: 12:13=29:6
B76: 10:28=11:7 | L76: 12:23=13:16=15:2
B77: 15:13=17:22 | L77: 15:16=16:8
B78: 16:2=21:2 | L78: 19:25=21:11
B79: 22:13=26:13 | L79: 21:9=21:19=25:24
B80: 26:12=29:20 | L80: 22:2=29:13
L81: 26:1=26:8

Sheet Sheet2

Sheet Sheet3
